fUST/lending_fUST_20241122
["ID","MTS","AMOUNT","RATE_DAILY","PERIOD"]
[342974076,1732240209907,176.28,0.00026301,119]
[342974077,1732240209936,176.28,0.00026301,119]
[342974078,1732240209964,176.28,0.00026301,119]
[342974079,1732240209990,176.28,0.00026301,119]
[342974080,1732240210015,176.28,0.00026301,119]
[342974081,1732240210042,176.28,0.00026301,119]
[342974082,1732240210067,176.28,0.00026301,119]
[342974083,1732240210093,176.28,0.00026301,119]
[342974084,1732240210119,176.28,0.00026301,119]
[342974163,1732240233061,-163.226803,0.00019178,2]
[342974167,1732240233071,-226.63375732,0.00019219,2]
[342974427,1732240239021,-773.36624268,0.00019219,2]
[342974428,1732240239031,-179.14063692,0.000193,2]
[342974429,1732240239040,-1714.05237344,0.000193,2]
[342974430,1732240239049,-300.0,0.00019317,2]
[342974431,1732240239059,-3883.60882398,0.00019318,2]
[342974442,1732240240968,-62.25197,0.00019318,2]
[342974505,1732240247099,-3015.6321532,0.00019318,2]
[342974508,1732240247108,-258.69776849,0.00019318,2]
[342974510,1732240247117,-500.0,0.00019318,2]
[342974512,1732240247126,-165.27462867,0.00019318,2]
[342974514,1732240247135,-611.7829208,0.00019318,2]
[342974516,1732240247144,-460.10157788,0.00019318,2]
[342974518,1732240247153,-213.87426079,0.00019318,2]
[342974520,1732240247162,-258.16143418,0.00019318,2]
[342974522,1732240247172,-500.0,0.00019318,2]
[342974524,1732240247181,-222.08690051,0.00019319,2]
[342974553,1732240519358,400.0,0.00013973,2]
[342974555,1732240815243,2890.51374251,0.00026,60]
[342974556,1732241181566,400.0,0.00013973,2]
[342974789,1732241446309,-300.0,0.00018313,2]
[342974791,1732241446318,-1563.40391355,0.00018314,2]
[342976424,1732242118416,391.40934,0.00013973,2]
[342976467,1732242632590,-5289.52632402,0.00017823,2]
[342976469,1732242632601,-300.0,0.00018082,2]
[342976471,1732242632610,-300.0,0.00018082,2]
[342976473,1732242632619,-24900.0,0.00018083,2]
[342976475,1732242632630,-2508.02553147,0.0001888,2]
[342976477,1732242632641,-1000.0,0.0001898,2]
[342976479,1732242632652,-310.07594778,0.00019031,2]
[342976480,1732242632667,-1371.24189876,0.00019078,2]
[342976482,1732242632677,-1000.0,0.000191,2]
[342976484,1732242632688,-350.57108214,0.00019118,2]
[342976486,1732242632704,-336.943221,0.00019118,2]
[342976488,1732242632717,-500.0,0.00019118,2]
[342976491,1732242632730,-500.0,0.00019118,2]
[342976493,1732242632743,-389.88534133,0.00019118,2]
[342976494,1732242632752,-410.24110784,0.00019118,2]
[342976496,1732242632762,-304.57781948,0.00019119,2]
[342976498,1732242632774,-13865.80275157,0.00019119,2]
[342976595,1732242638448,-23067.86110693,0.00019119,2]
[342976598,1732242638460,-1218.65830242,0.00019119,2]
[342976778,1732242640338,-700.0,0.00019119,2]
[342976780,1732242640351,-3775.99568758,0.00019119,2]
[342976783,1732242640363,-1224.00431242,0.00019119,2]
[342976785,1732242640375,-7232.48297435,0.00019119,2]
[342976787,1732242640388,-15321.33454681,0.00019119,2]
[342977133,1732242643892,-3345.53031496,0.00019119,2]
[342978943,1732242786078,371.838873,0.00013973,2]
[342978945,1732243514908,353.246929,0.00013973,2]
[342978976,1732243778323,176.28,0.000263,120]
[342978977,1732243778350,176.28,0.000263,120]
[342978978,1732243778377,176.28,0.000263,120]
[342978979,1732243778532,176.28,0.000263,120]
[342978980,1732243778563,176.28,0.000263,120]
[342978981,1732243778591,176.28,0.000263,120]
[342978982,1732243778618,176.28,0.000263,120]
[342978983,1732243778645,176.28,0.000263,120]
[342978984,1732243778671,176.28,0.000263,120]
[342978985,1732243778697,176.28,0.000263,120]
[342978986,1732243778724,116.2,0.000263,120]
[342979044,1732243832720,-300.0,0.00018072,2]
[342979046,1732243832730,-24900.0,0.00018073,2]
[342979048,1732243832740,-8615.94738614,0.00018752,2]
[342979050,1732243832752,-2194.52234001,0.00018919,2]
[342979052,1732243832762,-203.05187966,0.00019019,2]
[342979054,1732243832771,-1778.59134367,0.00019019,2]
[342979056,1732243832780,-11336.68578547,0.00019019,2]
[342979628,1732243838539,-2942.805946,0.00019019,2]
[342979765,1732243840513,-7530.0,0.00019019,2]
[342979784,1732243844000,-14043.07222214,0.00019019,2]
[342979787,1732243844019,-1654.61811209,0.00019019,2]
[342979973,1732243846530,-453.0,0.00019019,2]
[342979975,1732243846542,-466.00000002,0.00019019,2]
[342979979,1732244236523,373.584583,0.00013973,2]
[342979980,1732244297731,318.73432882,0.00026,60]
[342979981,1732244365071,22485.81803557,0.00026,60]
[342979982,1732244581458,-500.0,0.00029,120]
[342979983,1732244900743,354.905353,0.00013973,2]
[342979990,1732245032652,-300.0,0.00018082,2]
[342979992,1732245032661,-24900.0,0.00018083,2]
[342979994,1732245032671,-306.0,0.00018706,2]
[342979996,1732245032680,-1946.13769784,0.00018784,2]
[342979998,1732245032690,-1096.993519,0.00018884,2]
[342980000,1732245032700,-9558.74304708,0.00018888,2]
[342980002,1732245032710,-225.59128861,0.00018919,2]
[342980004,1732245032719,-10969.53444747,0.00018919,2]
[342980201,1732245044115,-2745.08443739,0.00018919,2]
[342980209,1732245044380,-10548.68014412,0.00018919,2]
[342980542,1732245077536,151.0,0.00014,2]
[342980543,1732245086587,151.0,0.00016,10]
[342980544,1732245097301,151.0,0.00022,30]
[342980545,1732245105031,151.0,0.00026,60]
[342980546,1732245846353,337.160085,0.00013973,2]
[342980655,1732246236920,-167.62614884,0.00015,2]
[342980657,1732246236930,-300.0,0.00017776,2]
[342980659,1732246236940,-24900.0,0.00017777,2]
[342980661,1732246236950,-195.62147551,0.00018612,2]
[342980663,1732246236961,-280.5,0.00018712,2]
[342980665,1732246236971,-211.16294601,0.00018719,3]
[342980667,1732246236980,-877.5948152,0.000188,2]
[342980669,1732246236991,-9558.74304708,0.00018818,2]
[342980671,1732246237000,-150.39419241,0.00018819,2]
[342980673,1732246237010,-89749.06897669,0.00018819,2]
[342980675,1732246237022,-9968.8262725,0.00018819,2]
[342980685,1732246237110,-146911.53535685,0.00018819,2]
[342980875,1732246244582,-3370.56939396,0.00018819,2]
[342980877,1732246244592,-156.489096,0.000189,2]
[342980879,1732246244602,-310.00379739,0.00018984,2]
[342980880,1732246244611,-280.5,0.00018994,2]
[342980881,1732246244620,-285.8906368,0.000191,2]
[342980882,1732246244629,-153.0,0.000191,2]
[342980883,1732246244639,-153.0,0.000191,2]
[342980884,1732246244648,-153.0,0.000191,2]
[342980885,1732246244658,-150.84686854,0.00019118,2]
[342980886,1732246244667,-389.35397426,0.00019118,2]
[342980887,1732246244676,-162.87538,0.00019178,2]
[342980888,1732246244686,-220.796733,0.00019178,2]
[342980889,1732246244695,-1000.0,0.000192,2]
[342980890,1732246244705,-428.548861,0.000192,2]
[342980891,1732246244714,-151.0,0.000192,2]
[342980892,1732246244724,-1000.0,0.00019218,2]
[342980893,1732246244733,-877.59481519,0.00019273,2]
[342980894,1732246244743,-280.5,0.00019277,2]
[342980895,1732246244752,-1000.0,0.00019336,2]
[342980896,1732246244762,-1562.06998245,0.00019336,2]
[342980897,1732246244772,-500.0,0.000194,2]
[342980898,1732246244783,-151.0,0.000194,2]
[342980899,1732246244793,-169.36157331,0.00019435,2]
[342980900,1732246244802,-164.42453749,0.00019435,2]
[342980901,1732246244812,-151.0,0.00019436,2]
[342980902,1732246244822,-151.0,0.00019436,2]
[342980903,1732246244831,-164.16076,0.00019436,2]
[342980904,1732246244842,-164.16076,0.00019436,2]
[342980905,1732246244852,-164.16076,0.00019436,2]
[342980906,1732246244863,-164.16076,0.00019436,2]
[342980907,1732246244873,-151.0,0.00019436,2]
[342980908,1732246244882,-151.0,0.00019436,2]
[342980909,1732246244893,-151.0,0.00019436,2]
[342980910,1732246244902,-151.0,0.00019436,2]
[342980911,1732246244912,-151.0,0.00019436,2]
[342980912,1732246244922,-151.0,0.00019436,2]
[342980913,1732246244931,-260.470308,0.00019436,2]
[342980914,1732246244941,-151.0,0.00019436,2]
[342980915,1732246244951,-151.378966,0.00019436,2]
[342980916,1732246244961,-151.0,0.00019436,2]
[342980917,1732246244971,-151.0,0.00019436,2]
[342980918,1732246244980,-151.0,0.00019436,2]
[342980919,1732246244990,-151.288954,0.00019436,2]
[342980920,1732246244999,-151.0,0.00019436,2]
[342980921,1732246245009,-209.721867,0.00019436,2]
[342980922,1732246245018,-151.0,0.00019436,2]
[342980923,1732246245029,-151.0,0.00019436,2]
[342980924,1732246245039,-151.0,0.00019436,2]
[342980925,1732246245049,-151.0,0.00019436,2]
[342980926,1732246245060,-151.0,0.00019436,2]
[342980927,1732246245070,-151.0,0.00019436,2]
[342980928,1732246245080,-151.0,0.00019436,2]
[342980929,1732246245090,-274.279377,0.00019436,2]
[342980930,1732246245099,-151.0,0.00019436,2]
[342980931,1732246245109,-151.0,0.00019436,2]
[342980932,1732246245119,-151.0,0.00019436,2]
[342980933,1732246245129,-151.0,0.00019436,2]
[342980934,1732246245138,-151.0,0.00019436,2]
[342980935,1732246245148,-151.0,0.00019436,2]
[342980936,1732246245158,-151.0,0.00019436,2]
[342980937,1732246245167,-151.0,0.00019436,2]
[342980938,1732246245178,-151.0,0.00019436,2]
[342980939,1732246245188,-151.0,0.00019436,2]
[342980940,1732246245198,-224.293259,0.00019436,2]
[342980941,1732246245208,-224.293259,0.00019436,2]
[342980942,1732246245218,-224.293259,0.00019436,2]
[342980943,1732246245228,-224.293259,0.00019436,2]
[342980944,1732246245237,-224.293259,0.00019436,2]
[342980945,1732246245247,-224.293259,0.00019436,2]
[342980946,1732246245258,-224.293259,0.00019436,2]
[342980947,1732246245272,-224.293259,0.00019436,2]
[342980948,1732246245286,-224.293259,0.00019436,2]
[342980949,1732246245296,-224.293259,0.00019436,2]
[342980950,1732246245306,-437.904342,0.00019436,2]
[342980951,1732246245316,-437.904342,0.00019436,2]
[342980952,1732246245326,-437.904342,0.00019436,2]
[342980953,1732246245335,-437.904342,0.00019436,2]
[342980954,1732246245346,-280.69347884,0.00019436,2]
[342980955,1732246245363,-157.21086316,0.00019436,2]
[342980956,1732246245373,-437.904342,0.00019436,2]
[342980957,1732246245382,-437.904342,0.00019436,2]
[342980958,1732246245392,-437.904342,0.00019436,2]
[342980959,1732246245401,-437.904342,0.00019436,2]
[342980960,1732246245412,-437.904342,0.00019436,2]
[342980961,1732246245421,-534.253732,0.00019436,2]
[342980962,1732246245431,-534.253732,0.00019436,2]
[342980963,1732246245441,-534.253732,0.00019436,2]
[342980964,1732246245451,-534.253732,0.00019436,2]
[342980965,1732246245460,-534.253732,0.00019436,2]
[342980966,1732246245470,-534.253732,0.00019436,2]
[342980967,1732246245480,-534.253732,0.00019436,2]
[342980968,1732246245490,-534.253732,0.00019436,2]
[342980969,1732246245500,-534.253732,0.00019436,2]
[342980970,1732246245509,-534.253732,0.00019436,2]
[342980971,1732246245519,-534.253732,0.00019436,2]
[342980972,1732246245531,-534.253732,0.00019436,2]
[342980973,1732246245540,-534.253732,0.00019436,2]
[342980974,1732246245550,-534.253732,0.00019436,2]
[342980975,1732246245560,-151.0,0.00019436,2]
[342980976,1732246245568,-151.0,0.00019436,2]
[342980977,1732246245578,-151.0,0.00019436,2]
[342980978,1732246245589,-151.0,0.00019436,2]
[342980979,1732246245601,-151.0,0.00019436,2]
[342980980,1732246245611,-151.0,0.00019436,2]
[342980981,1732246245620,-151.0,0.00019436,2]
[342980982,1732246245629,-151.0,0.00019436,2]
[342980983,1732246245638,-151.0,0.00019436,2]
[342980984,1732246245648,-151.0,0.00019436,2]
[342980985,1732246245658,-151.0,0.00019436,2]
[342980986,1732246245668,-151.0,0.00019436,2]
[342980987,1732246245677,-151.0,0.00019436,2]
[342980988,1732246245687,-297.282951,0.00019436,2]
[342980989,1732246245697,-158.164435,0.00019436,2]
[342980990,1732246245706,-151.0,0.00019436,2]
[342980991,1732246245716,-151.0,0.00019436,2]
[342980992,1732246245726,-151.0,0.00019436,2]
[342980993,1732246245736,-151.0,0.00019436,2]
[342980994,1732246245745,-158.447805,0.00019436,2]
[342980995,1732246245755,-1466.921102,0.00019436,2]
[342980996,1732246245765,-1466.921102,0.00019436,2]
[342980997,1732246245775,-1466.921102,0.00019436,2]
[342980998,1732246245786,-1466.921102,0.00019436,2]
[342980999,1732246245797,-1466.921102,0.00019436,2]
[342981000,1732246245807,-1466.921102,0.00019436,2]
[342981001,1732246245817,-1466.921102,0.00019436,2]
[342981002,1732246245827,-1466.921102,0.00019436,2]
[342981003,1732246245836,-1466.921102,0.00019436,2]
[342981004,1732246245845,-1466.921102,0.00019436,2]
[342981005,1732246245856,-1466.921102,0.00019436,2]
[342981006,1732246245865,-1466.921102,0.00019436,2]
[342981007,1732246245875,-1466.921102,0.00019436,2]
[342981008,1732246245885,-1466.921102,0.00019436,2]
[342981009,1732246245895,-1466.921102,0.00019436,2]
[342981010,1732246245905,-1466.921102,0.00019436,2]
[342981011,1732246245915,-1466.921102,0.00019436,2]
[342981012,1732246245925,-1466.921102,0.00019436,2]
[342981013,1732246245935,-1466.921102,0.00019436,2]
[342981014,1732246245946,-1466.921095,0.00019436,2]
[342981015,1732246245956,-151.0,0.00019436,2]
[342981016,1732246245966,-151.0,0.00019436,2]
[342981017,1732246245975,-151.0,0.00019436,2]
[342981018,1732246245986,-151.0,0.00019436,2]
[342981019,1732246245996,-151.0,0.00019436,2]
[342981020,1732246246006,-151.0,0.00019436,2]
[342981021,1732246246016,-151.0,0.00019436,2]
[342981022,1732246246026,-151.0,0.00019436,2]
[342981023,1732246246038,-151.0,0.00019436,2]
[342981024,1732246246048,-151.0,0.00019436,2]
[342981025,1732246246059,-151.0,0.00019436,2]
[342981026,1732246246068,-226.761794,0.00019436,2]
[342981027,1732246246078,-151.0,0.00019436,2]
[342981028,1732246246088,-151.0,0.00019436,2]
[342981029,1732246246098,-151.0,0.00019436,2]
[342981030,1732246246108,-151.0,0.00019436,2]
[342981031,1732246246117,-151.0,0.00019436,2]
[342981032,1732246246127,-151.0,0.00019436,2]
[342981033,1732246246137,-151.0,0.00019436,2]
[342981034,1732246246147,-151.0,0.00019436,2]
[342981035,1732246246157,-151.0,0.00019436,2]
[342981036,1732246246167,-151.0,0.00019436,2]
[342981037,1732246246177,-244.848364,0.00019436,2]
[342981038,1732246246187,-560.793972,0.00019436,2]
[342981039,1732246246197,-560.793972,0.00019436,2]
[342981040,1732246246207,-560.793972,0.00019436,2]
[342981041,1732246246216,-560.793972,0.00019436,2]
[342981042,1732246246226,-560.793972,0.00019436,2]
[342981043,1732246246236,-560.793972,0.00019436,2]
[342981044,1732246246246,-560.793972,0.00019436,2]
[342981045,1732246246256,-560.793972,0.00019436,2]
[342981046,1732246246266,-560.793972,0.00019436,2]
[342981047,1732246246278,-560.793972,0.00019436,2]
[342981048,1732246246294,-560.793972,0.00019436,2]
[342981049,1732246246303,-560.793972,0.00019436,2]
[342981050,1732246246315,-560.793972,0.00019436,2]
[342981051,1732246246324,-560.793972,0.00019436,2]
[342981054,1732246246336,-560.793972,0.00019436,2]
[342981058,1732246246347,-560.793972,0.00019436,2]
[342981062,1732246246358,-560.793972,0.00019436,2]
[342981064,1732246246367,-560.793972,0.00019436,2]
[342981067,1732246246376,-560.793972,0.00019436,2]
[342981070,1732246246386,-560.793963,0.00019436,2]
[342981072,1732246246396,-451.174984,0.00019436,2]
[342981074,1732246246406,-451.174984,0.00019436,2]
[342981076,1732246246416,-451.174984,0.00019436,2]
[342981078,1732246246425,-451.174984,0.00019436,2]
[342981079,1732246246435,-451.174984,0.00019436,2]
[342981080,1732246246447,-451.174984,0.00019436,2]
[342981081,1732246246457,-451.174984,0.00019436,2]
[342981082,1732246246467,-451.174984,0.00019436,2]
[342981083,1732246246477,-451.174984,0.00019436,2]
[342981084,1732246246486,-451.174984,0.00019436,2]
[342981085,1732246246496,-451.174984,0.00019436,2]
[342981095,1732246246506,-451.174984,0.00019436,2]
[342981096,1732246246630,-451.174984,0.00019436,2]
[342981097,1732246246640,-451.174984,0.00019436,2]
[342981098,1732246246650,-654.887861,0.00019436,2]
[342981099,1732246246660,-654.887861,0.00019436,2]
[342981100,1732246246670,-654.887861,0.00019436,2]
[342981102,1732246246680,-654.887861,0.00019436,2]
[342981104,1732246246690,-654.887861,0.00019436,2]
[342981106,1732246246699,-654.887861,0.00019436,2]
[342981108,1732246246710,-682.657291,0.00019436,2]
[342981110,1732246246720,-682.657291,0.00019436,2]
[342981112,1732246246729,-654.887861,0.00019436,2]
[342981113,1732246246740,-654.887861,0.00019436,2]
[342981115,1732246246750,-682.657291,0.00019436,2]
[342981117,1732246246759,-682.657291,0.00019436,2]
[342981118,1732246246769,-654.887861,0.00019436,2]
[342981119,1732246246779,-682.657291,0.00019436,2]
[342981120,1732246246790,-151.0,0.00019436,2]
[342981121,1732246246799,-654.887861,0.00019436,2]
[342981122,1732246246808,-682.657291,0.00019436,2]
[342981123,1732246246818,-654.887861,0.00019436,2]
[342981124,1732246246828,-151.0,0.00019436,2]
[342981125,1732246246838,-654.887861,0.00019436,2]
[342981126,1732246246848,-151.0,0.00019436,2]
[342981127,1732246246857,-654.887861,0.00019436,2]
[342981128,1732246246867,-151.0,0.00019436,2]
[342981130,1732246246876,-682.657291,0.00019436,2]
[342981131,1732246246886,-654.887861,0.00019436,2]
[342981133,1732246246897,-151.0,0.00019436,2]
[342981134,1732246246906,-682.657291,0.00019436,2]
[342981135,1732246246915,-654.887861,0.00019436,2]
[342981136,1732246246925,-151.0,0.00019436,2]
[342981137,1732246246935,-682.657291,0.00019436,2]
[342981138,1732246246945,-654.887861,0.00019436,2]
[342981139,1732246246955,-682.657291,0.00019436,2]
[342981140,1732246246966,-151.0,0.00019436,2]
[342981141,1732246246976,-654.887861,0.00019436,2]
[342981142,1732246246987,-682.657291,0.00019436,2]
[342981143,1732246246997,-654.887861,0.00019436,2]
[342981144,1732246247009,-682.657291,0.00019436,2]
[342981145,1732246247020,-682.657291,0.00019436,2]
[342981146,1732246247032,-654.887861,0.00019436,2]
[342981147,1732246247041,-682.657291,0.00019436,2]
[342981148,1732246247051,-654.887857,0.00019436,2]
[342981149,1732246247061,-682.657291,0.00019436,2]
[342981150,1732246247070,-682.657291,0.00019436,2]
[342981151,1732246247080,-151.0,0.00019436,2]
[342981152,1732246247090,-682.657291,0.00019436,2]
[342981153,1732246247100,-151.0,0.00019436,2]
[342981154,1732246247109,-682.657291,0.00019436,2]
[342981155,1732246247119,-151.0,0.00019436,2]
[342981156,1732246247129,-682.657291,0.00019436,2]
[342981157,1732246247138,-151.0,0.00019436,2]
[342981158,1732246247148,-682.657287,0.00019436,2]
[342981159,1732246247158,-151.0,0.00019436,2]
[342981160,1732246247167,-151.0,0.00019436,2]
[342981161,1732246247177,-151.0,0.00019436,2]
[342981162,1732246247187,-1897.469805,0.00019436,2]
[342981163,1732246247198,-1897.469805,0.00019436,2]
[342981164,1732246247208,-1897.469805,0.00019436,2]
[342981165,1732246247218,-1897.469805,0.00019436,2]
[342981166,1732246247227,-1897.469805,0.00019436,2]
[342981167,1732246247237,-1897.469805,0.00019436,2]
[342981168,1732246247246,-1897.469805,0.00019436,2]
[342981169,1732246247256,-1897.469805,0.00019436,2]
[342981170,1732246247266,-1897.469805,0.00019436,2]
[342981171,1732246247277,-1897.469805,0.00019436,2]
[342981172,1732246247289,-1897.469805,0.00019436,2]
[342981173,1732246247299,-1897.469809,0.00019436,2]
[342981174,1732246247308,-345.9059,0.00019436,2]
[342981175,1732246247319,-345.9059,0.00019436,2]
[342981176,1732246247330,-345.9059,0.00019436,2]
[342981177,1732246247339,-345.9059,0.00019436,2]
[342981178,1732246247349,-345.9059,0.00019436,2]
[342981179,1732246247359,-345.9059,0.00019436,2]
[342981180,1732246247369,-151.0,0.00019436,2]
[342981181,1732246247379,-345.9059,0.00019436,2]
[342981182,1732246247389,-227.058546,0.00019436,2]
[342981183,1732246247398,-345.9059,0.00019436,2]
[342981184,1732246247408,-345.9059,0.00019436,2]
[342981185,1732246247418,-345.9059,0.00019436,2]
[342981186,1732246247427,-345.9059,0.00019436,2]
[342981187,1732246247437,-345.9059,0.00019436,2]
[342981188,1732246247447,-345.9059,0.00019436,2]
[342981189,1732246247458,-345.9059,0.00019436,2]
[342981190,1732246247468,-345.9059,0.00019436,2]
[342981191,1732246247478,-345.9059,0.00019436,2]
[342981192,1732246247487,-345.9059,0.00019436,2]
[342981193,1732246247497,-345.9059,0.00019436,2]
[342981194,1732246247507,-345.9059,0.00019436,2]
[342981195,1732246247516,-345.905908,0.00019436,2]
[342981196,1732246247526,-151.0,0.00019436,2]
[342981197,1732246247538,-151.0,0.00019436,2]
[342981198,1732246247547,-151.0,0.00019436,2]
[342981199,1732246247557,-151.0,0.00019436,2]
[342981200,1732246247567,-151.0,0.00019436,2]
[342981201,1732246247576,-151.0,0.00019436,2]
[342981202,1732246247586,-151.0,0.00019436,2]
[342981203,1732246247595,-151.0,0.00019436,2]
[342981204,1732246247605,-151.0,0.00019436,2]
[342981205,1732246247614,-151.0,0.00019436,2]
[342981206,1732246247624,-290.847253,0.00019436,2]
[342981207,1732246247633,-412.300879,0.00019436,2]
[342981208,1732246247643,-412.300879,0.00019436,2]
[342981209,1732246247653,-412.300879,0.00019436,2]
[342981210,1732246247662,-412.300879,0.00019436,2]
[342981211,1732246247671,-412.300879,0.00019436,2]
[342981212,1732246247681,-412.300879,0.00019436,2]
[342981213,1732246247690,-412.300879,0.00019436,2]
[342981214,1732246247700,-412.300879,0.00019436,2]
[342981215,1732246247710,-412.300879,0.00019436,2]
[342981216,1732246247720,-412.300879,0.00019436,2]
[342981217,1732246247729,-412.300879,0.00019436,2]
[342981218,1732246247739,-412.300879,0.00019436,2]
[342981219,1732246247749,-151.0,0.00019436,2]
[342981220,1732246247758,-412.300879,0.00019436,2]
[342981221,1732246247768,-151.0,0.00019436,2]
[342981222,1732246247778,-412.300879,0.00019436,2]
[342981223,1732246247789,-151.0,0.00019436,2]
[342981224,1732246247799,-412.300879,0.00019436,2]
[342981225,1732246247808,-151.0,0.00019436,2]
[342981226,1732246247818,-412.300879,0.00019436,2]
[342981227,1732246247827,-151.0,0.00019436,2]
[342981228,1732246247838,-412.300879,0.00019436,2]
[342981229,1732246247847,-151.0,0.00019436,2]
[342981230,1732246247857,-412.300879,0.00019436,2]
[342981231,1732246247867,-151.0,0.00019436,2]
[342981232,1732246247877,-412.300879,0.00019436,2]
[342981233,1732246247886,-151.0,0.00019436,2]
[342981234,1732246247895,-412.30087,0.00019436,2]
[342981235,1732246247905,-266.29329,0.00019436,2]
[342981236,1732246247915,-151.0,0.00019436,2]
[342981237,1732246247926,-151.0,0.00019436,2]
[342981238,1732246247935,-151.0,0.00019436,2]
[342981239,1732246247945,-151.0,0.00019436,2]
[342981240,1732246247955,-151.0,0.00019436,2]
[342981241,1732246247964,-151.0,0.00019436,2]
[342981242,1732246247974,-521.886443,0.00019436,2]
[342981243,1732246247984,-151.0,0.00019436,2]
[342981244,1732246247994,-521.886443,0.00019436,2]
[342981245,1732246248004,-180.943089,0.00019436,2]
[342981246,1732246248015,-21.13433764,0.00019436,2]
[342981247,1732246248389,-500.75210536,0.00019436,2]
[342981248,1732246248401,-521.886443,0.00019436,2]
[342981249,1732246248412,-521.886443,0.00019436,2]
[342981250,1732246248423,-521.886443,0.00019436,2]
[342981251,1732246248435,-521.886443,0.00019436,2]
[342981252,1732246248445,-521.886443,0.00019436,2]
[342981253,1732246248456,-521.886443,0.00019436,2]
[342981254,1732246248466,-521.886443,0.00019436,2]
[342981255,1732246248477,-521.886443,0.00019436,2]
[342981256,1732246248487,-521.886443,0.00019436,2]
[342981257,1732246248496,-521.886443,0.00019436,2]
[342981258,1732246248506,-521.886443,0.00019436,2]
[342981259,1732246248515,-521.886443,0.00019436,2]
[342981260,1732246248525,-521.886443,0.00019436,2]
[342981261,1732246248538,-164.42140665,0.00019436,2]
[342981262,1732246248551,-357.46503635,0.00019436,2]
[342981263,1732246248561,-521.886443,0.00019436,2]
[342981264,1732246248571,-521.886443,0.00019436,2]
[342981265,1732246248581,-521.886451,0.00019436,2]
[342981266,1732246248593,-151.0,0.00019436,2]
[342981267,1732246248602,-151.0,0.00019436,2]
[342981268,1732246248612,-151.0,0.00019436,2]
[342981269,1732246248622,-151.0,0.00019436,2]
[342981270,1732246248632,-151.0,0.00019436,2]
[342981271,1732246248641,-151.0,0.00019436,2]
[342981272,1732246248651,-151.0,0.00019436,2]
[342981273,1732246248660,-151.0,0.00019436,2]
[342981274,1732246248670,-209.895066,0.00019436,2]
[342981275,1732246248679,-282.457178,0.00019436,2]
[342981276,1732246248689,-282.457178,0.00019436,2]
[342981277,1732246248698,-282.457178,0.00019436,2]
[342981278,1732246248707,-282.457178,0.00019436,2]
[342981279,1732246248717,-282.457178,0.00019436,2]
[342981280,1732246248726,-282.457178,0.00019436,2]
[342981281,1732246248738,-282.457178,0.00019436,2]
[342981282,1732246248748,-282.457178,0.00019436,2]
[342981283,1732246248759,-282.457178,0.00019436,2]
[342981284,1732246248770,-282.457178,0.00019436,2]
[342981285,1732246248782,-151.0,0.00019436,2]
[342981286,1732246248792,-282.457178,0.00019436,2]
[342981287,1732246248802,-151.0,0.00019436,2]
[342981288,1732246248813,-282.457178,0.00019436,2]
[342981289,1732246248824,-151.0,0.00019436,2]
[342981290,1732246248834,-151.0,0.00019436,2]
[342981291,1732246248844,-263.13740842,0.00019436,2]
[342981292,1732246248857,-19.31976958,0.00019436,2]
[342981293,1732246248867,-151.0,0.00019436,2]
[342981294,1732246248877,-282.457178,0.00019436,2]
[342981295,1732246248887,-151.0,0.00019436,2]
[342981296,1732246248897,-282.457178,0.00019436,2]